Cogmind - Beta 13 @@@ ROGUE MODE // 2024.03.31 @ 22:30:26 Player: Derauth Result: Destroyed by 8R-AWN with 8R-AWN's Boregun Performance ------------- Evolutions (1) 500 Regions Visited (5) 1000 Robots Destroyed (51) 255 Value Destroyed (1331) 1331 Prototype IDs (4) 80 Alien Tech Used (0) 0 Bonus (44) 44 TOTAL SCORE: 3210 Bonus ------- High Alert Combat Kills 44 Cogmind --------- Core Integrity 0/400 Matter 64/300 Energy 93/100 System Corruption 10% Temperature Cool (0) Movement Core (100) Ox1 Location -9/Exiles Parts ------- > --- POWER (1) -------- (None) > --- PROPULSION (2) --- (None) > --- UTILITY (3) ------ Small Storage Unit > --- WEAPON (3) ------- (None) > --- INVENTORY (8) ---- Improved Ion Engine Peak State ------------ > --- POWER ------------ Cooled Ion Engine > --- PROPULSION ------- Improved Flight Unit Improved Flight Unit > --- UTILITY ---------- Improved Heat Sink Small Storage Unit Hacking Suite > --- WEAPON ----------- Minigun Minigun Minigun > --- INVENTORY -------- Cooled Ion Engine Aluminum Leg Particle Cannon Particle Cannon Autogun Minigun Grenade Launcher Rocket Launcher [Rating: 26] Favorites ----------- Power Cooled Ion Engine Engine Cooled Ion Engine Power Core Light Nuclear Core Propulsion Aluminum Leg Leg Aluminum Leg Flight Unit Improved Flight Unit Utility Hacking Suite Device Improved Heat Sink Storage Small Storage Unit Processor Signal Interpreter Hackware Hacking Suite Weapon Minigun Energy Gun Particle Gun Energy Cannon Beam Cannon Ballistic Gun Minigun Launcher Grenade Launcher Build | -11 -10 -10 -9 -9 -9 ------- Run | Yrd Mat Min Mat Min Exi Slots Evolved 2 | . . . 2 . . Power . | . . . . . . Propulsion . | . . . . . . Utility 1 | . . . 1 . . Weapon 1 | . . . 1 . . Parts Attached 64 | 5 10 14 29 . 6 Power 7 | 1 . 1 5 . . Engine 4 | 1 . . 3 . . Core 3 | . . 1 2 . . Reactor . | . . . . . . Propulsion 12 | 2 1 5 4 . . Treads . | . . . . . . Leg 10 | 2 1 5 2 . . Wheel . | . . . . . . Hover . | . . . . . . Flight 2 | . . . 2 . . Utility 11 | . 6 3 2 . . Device 4 | . 1 3 . . . Storage 5 | . 3 . 2 . . Processor 1 | . 1 . . . . Hackware 1 | . 1 . . . . Protection . | . . . . . . Artifact . | . . . . . . Weapon 34 | 2 3 5 18 . 6 Energy Gun 1 | . . 1 . . . Energy Cannon 1 | . 1 . . . . Ballistic Gun 29 | 2 1 2 18 . 6 Ballistic Cannon . | . . . . . . Launcher 3 | . 1 2 . . . Special Weapon . | . . . . . . Impact Weapon . | . . . . . . Slashing Weapon . | . . . . . . Piercing Weapon . | . . . . . . Special Melee Weapon . | . . . . . . Unidentified Prototypes 4 | . . 1 3 . . Parts Lost 15 | . . . 2 . 13 Power 1 | . . . . . 1 Propulsion 2 | . . . . . 2 Utility 3 | . . . 1 . 2 Weapon 9 | . . . 1 . 8 Highest Loss Streak 13 | . . . 1 . 13 To Critical Strikes 4 | . . . . . 4 Average Slot Usage (%) 96 | . 95 100 97 100 87 Engine 7 | . 14 7 4 11 9 Core 3 | . . 6 6 . . Leg 23 | . 28 28 19 22 18 Device 6 | . 2 13 7 . . Storage 11 | . 11 . 12 22 20 Hackware 10 | . . 14 11 11 9 Energy Gun 2 | . . 7 . . . Energy Cannon 3 | . 9 7 . . . Ballistic Gun 23 | . 11 12 31 33 29 Launcher 1 | . 7 . 1 . . Naked Turns . | . . . . . . Heaviest Build 31 | 8 31 16 26 26 26 Greatest Support 23 | 20 20 20 23 23 23 Greatest Overweight (x) 4 | . 1 3 4 1 1 Average Overweight (x) . | . . . . 1 . Largest Inventory Capacity 15 | 5 15 8 8 8 8 Average Capacity 7 | 5 9 5 8 8 8 Most Carried 8 | 4 7 8 8 8 8 Average Carried 6 | 3 4 5 7 7 7 Final Capacity 8 | 5 8 5 8 8 8 Final Carried 8 | 3 6 5 7 8 1 Class Distribution -------------------- 34% | Gunner 28% | Scavenger-Mutant 19% | Mutant 17% | Scavenger-Gunner Dominant Class ---------------- Mutant | -10/Materials Scavenger-Mutant | -10/Mines Scavenger-Gunner | -9/Materials Gunner | -9/Mines Gunner | -9/Exiles Resources | -11 -10 -10 -9 -9 -9 ----------- Run | Yrd Mat Min Mat Min Exi Matter Collected 1668 | 161 265 281 834 110 17 Remotely 18 | . 18 . . . . Salvage Created 1623 | . 265 213 1010 40 95 Parts 119 | . 20 17 77 5 . Haulers Intercepted 2 | . . . 2 . . Recyclers Shooed 1 | . . . 1 . . Parts Field Recycled . | . . . . . . Retrieved Matter . | . . . . . . Parts Self-Destructed . | . . . . . . Prevented . | . . . . . . Kills | -11 -10 -10 -9 -9 -9 ------- Run | Yrd Mat Min Mat Min Exi Combat Hostiles Destroyed 50 | . 9 7 24 3 7 Guns 41 | . 4 3 24 3 7 Cannons 8 | . 4 4 . . . AOE 1 | . 1 . . . . Classes Destroyed 9 | . 3 . 5 . 1 Worker 1 | . . . 1 . . Hauler 2 | . . . 2 . . Operator 1 | . 1 . . . . Watcher 4 | . . . 4 . . Swarmer 16 | . 3 3 7 3 . Grunt 23 | . 6 4 13 . . Duelist 1 | . . . 1 . . Sentry 3 | . . . 3 . . Assembled 7 | . . . . . 7 Best Kill Streak 8 | . 6 2 8 3 7 Combat Bots Only 8 | . 6 2 8 3 7 Max Kills in Single Turn 3 | . 1 1 3 2 1 Gunslinging 2 | . . . 2 1 . Exploded 1 | . 1 . . . . Melee . | . . . . . . Uniques/NPCs Destroyed . | . . . . . . Combat | -11 -10 -10 -9 -9 -9 -------- Run | Yrd Mat Min Mat Min Exi Hostile Shots Fired 311 | . 39 42 98 9 123 Missed 93 | . 14 14 33 2 30 Damage Taken 2889 | . 276 279 752 48 1534 Core 486 | . 35 48 90 7 306 Absorbed by Shields . | . . . . . . Regen/Repaired (Parts) 24 | . . . 24 . . Core Remaining (%) 83 | 100 . 66 . . . Volleys Fired 157 | . 33 21 60 3 40 Largest 3 | . 2 2 3 3 2 Hottest 125 | . 80 125 83 75 46 Shots Fired 323 | . 52 42 167 9 53 Gun 274 | . 29 21 162 9 53 Cannon 42 | . 21 21 . . . Launcher 7 | . 2 . 5 . . Special . | . . . . . . Kinetic 259 | . 29 6 162 9 53 Thermal 57 | . 21 36 . . . Explosive 7 | . 2 . 5 . . Electromagnetic . | . . . . . . Robot Hit Streak 14 | . 7 3 14 3 12 Robot Miss Streak 8 | . 8 3 6 3 3 Penetration Max . | . . . . . . Secondary Targets 10 | . . . 9 1 . Max Gunslinging Chain 2 | . . . 2 1 . Shots Hit Robots 174 | . 24 20 89 4 37 Core Hits 88 | . 14 9 45 3 17 Critical Kills . | . . . . . . Critical Parts Destroyed . | . . . . . . Critical Strikes 1 | . . 1 . . . Burn 1 | . . 1 . . . Melee Attacks . | . . . . . . Impact . | . . . . . . Slashing . | . . . . . . Piercing . | . . . . . . Sneak Attacks . | . . . . . . Combat Hostiles . | . . . . . . Follow-up Attacks . | . . . . . . Damage Inflicted 3119 | . 496 340 1598 64 621 Guns 2447 | . 181 170 1411 64 621 Cannons 348 | . 190 158 . . . Explosions 296 | . 125 . 171 . . Melee . | . . . . . . Ramming 28 | . . 12 16 . . Kinetic 2337 | . 181 60 1411 64 621 Thermal 458 | . 190 268 . . . Explosive 296 | . 125 . 171 . . Electromagnetic . | . . . . . . Impact . | . . . . . . Slashing . | . . . . . . Piercing . | . . . . . . Highest Corruption 10 | . . . 1 1 10 Average Corruption 1 | . . . 1 1 2 Corruption Purged . | . . . . . . Corruption Blocked . | . . . . . . Effects 19 | . . . 4 5 10 Message Errors 4 | . . . 1 . 3 Matter Fused 6 | . . . 1 3 2 Heat Flow Errors 1 | . . . . 1 . Energy Discharges 1 | . . . 1 . . Data Loss (minor) 1 | . . . . . 1 Data Loss (major) 3 | . . . 1 1 1 Misfires 1 | . . . . . 1 Weapon Failures 2 | . . . . . 2 Overload Shots . | . . . . . . Overflow Damage 40 | . 1 11 28 . . Projectiles 11 | . . 11 . . . Explosions 29 | . 1 . 28 . . Melee . | . . . . . . Knockbacks . | . . . . . . Impact . | . . . . . . Kinetic . | . . . . . . Secondary . | . . . . . . Self-Inflicted Damage 93 | . 38 . 55 . . Shots 2 | . 1 . 1 . . Rammed . | . . . . . . Targets Rammed 7 | . . 3 4 . . Kicked 7 | . . 3 4 . . Crushed . | . . . . . . Highest Temperature 671 | . 218 671 94 125 . Average Temperature 130 | . 94 254 21 43 . Received Heat Transfer 369 | . 66 111 192 . . Effects 20 | . . 20 . . . Shutdowns 4 | . . 4 . . . Energy Bleed 1 | . . 1 . . . Interference 1 | . . 1 . . . Matter Decay 3 | . . 3 . . . Short Circuit 2 | . . 2 . . . Damage (minor) 1 | . . 1 . . . Damage (major) 8 | . . 8 . . . Siege Activations . | . . . . . . Robots Corrupted . | . . . . . . Combat Hostiles . | . . . . . . Parts Fried . | . . . . . . Impact Corruptions . | . . . . . . Robots Melted . | . . . . . . Combat Hostiles . | . . . . . . Parts Melted 3 | . . 3 . . . Heat Transferred 1073 | . 407 666 . . . Parts Sabotaged . | . . . . . . Parts Stolen . | . . . . . . Parts Stripped . | . . . . . . Power Chain Reactions . | . . . . . . Alert | -11 -10 -10 -9 -9 -9 ------- Run | Yrd Mat Min Mat Min Exi Peak Influence 537 | . 186 207 537 273 . Initial 194 | . . 72 . 194 . Average 169 | . 104 87 277 240 . Maximum Alert Level 2 | . . 1 2 1 . Low Security (%) 58 | 100 100 84 29 15 . Level 1 34 | . . 15 47 84 . Level 2 7 | . . . 22 . . Level 3 . | . . . . . . Level 4 . | . . . . . . Level 5 . | . . . . . . High Security . | . . . . . . Max Security . | . . . . . . Squads Dispatched 9 | . 5 . 4 . . Investigation 7 | . 3 . 4 . . Extermination . | . . . . . . Reinforcement 2 | . 2 . . . . Assault . | . . . . . . Garrison . | . . . . . . Intercept . | . . . . . . Searches Triggered . | . . . . . . Construction Impeded . | . . . . . . Haulers Reinforced . | . . . . . . Active Scanning Responses . | . . . . . . Cargo Convoy Interrupts . | . . . . . . Stealth | -11 -10 -10 -9 -9 -9 --------- Run | Yrd Mat Min Mat Min Exi Distress Signals 1 | . . . 1 . . Communications Jammed . | . . . . . . Distress Signals . | . . . . . . Times Spotted 63 | . 12 7 30 4 10 Peak Tracking Total 11 | . 4 3 5 4 11 Tactical Retreats 4 | . 1 . 2 . 1 Traps | -11 -10 -10 -9 -9 -9 ------- Run | Yrd Mat Min Mat Min Exi Traps Triggered . | . . . . . . Indirectly . | . . . . . . Trap Hack Attempts . | . . . . . . Triggered . | . . . . . . Disarmed . | . . . . . . Reprogrammed . | . . . . . . Reused . | . . . . . . Traps Extracted . | . . . . . . Installed . | . . . . . . Triggered . | . . . . . . Machines | -11 -10 -10 -9 -9 -9 ---------- Run | Yrd Mat Min Mat Min Exi Machines Disabled 10 | . 2 1 4 . 3 Max in Single Turn 2 | . 1 1 2 . 1 Machines Repaired . | . . . . . . Machines Dismantled . | . . . . . . Machines Sabotaged . | . . . . . . Overloaded Fab Kills . | . . . . . . Hacking | -11 -10 -10 -9 -9 -9 --------- Run | Yrd Mat Min Mat Min Exi Machines Accessed 14 | . 5 . 7 1 1 Terminals 10 | . 5 . 4 1 . Fabricators . | . . . . . . Repair Stations 1 | . . . 1 . . Recycling Units 1 | . . . 1 . . Scanalyzers 1 | . . . 1 . . Garrison Access . | . . . . . . Total Hacks 78 | . 23 . 28 4 23 Successful 52 | . 9 . 17 3 23 Failed 26 | . 14 . 11 1 . Catastrophic 3 | . 1 . 2 . . Database Lockouts . | . . . . . . Manual . | . . . . . . Terminals 45 | . 23 . 18 4 . Fabricators . | . . . . . . Repair Stations 3 | . . . 3 . . Recycling Units 3 | . . . 3 . . Scanalyzers 4 | . . . 4 . . Garrison Access . | . . . . . . Terminal Hacks 45 | . 9 . 10 3 23 Record 28 | . 3 . 2 . 23 Robot Analysis 1 | . 1 . . . . Emergency Access Points 2 | . 1 . 1 . . Alert Level 4 | . 1 . 2 1 . Unreport Threat 1 | . 1 . . . . Locate Traps 2 | . 1 . 1 . . Dispatch Records 1 | . . . . 1 . Maintenance Status 1 | . 1 . . . . Patrol Status 1 | . . . 1 . . Recall Investigation 1 | . . . 1 . . Hauler Manifests 1 | . . . 1 . . Registered Components 1 | . . . 1 . . Zone Layout 1 | . . . . 1 . Fabricator Hacks . | . . . . . . Repair Station Hacks 2 | . . . 2 . . Scan Component 1 | . . . 1 . . Repair 1 | . . . 1 . . Recycling Unit Hacks 1 | . . . 1 . . Report Inventory 1 | . . . 1 . . Scanalyzer 4 | . . . 4 . . Insert Component 2 | . . . 2 . . Analyze 2 | . . . 2 . . Garrison Access Hacks . | . . . . . . Unauthorized Hacks . | . . . . . . Terminals . | . . . . . . Fabricators . | . . . . . . Repair Stations . | . . . . . . Recycling Units . | . . . . . . Scanalyzers . | . . . . . . Garrison Access . | . . . . . . Data Cores Recovered . | . . . . . . Used . | . . . . . . Hacking Detections 12 | . 5 . 7 . . Full Trace Events 12 | . 5 . 7 . . Feedback Events 1 | . . . 1 . . Corruption 1 | . . . 1 . . Feedback Blocked . | . . . . . . Robot Schematics Acquired . | . . . . . . Robots Built . | . . . . . . Authchips . | . . . . . . Time . | . . . . . . Total Robot Build Rating . | . . . . . . Part Schematics Acquired 2 | . . . 2 . . Parts Built . | . . . . . . Authchips . | . . . . . . Time . | . . . . . . Total Part Build Rating . | . . . . . . Parts Repaired 1 | . . . 1 . . Time 38 | . . . 38 . . Parts Recycled . | . . . . . . Recycled Matter . | . . . . . . Retrieved Matter . | . . . . . . Retrieved Components . | . . . . . . Parts Scanalyzed 2 | . . . 2 . . Part Schematics Acquired 2 | . . . 2 . . Parts Damaged . | . . . . . . Bothacking | -11 -10 -10 -9 -9 -9 ------------ Run | Yrd Mat Min Mat Min Exi Used RIF Installer . | . . . . . . Robots Hacked . | . . . . . . Non-combat . | . . . . . . Combat . | . . . . . . Robot Hacks Applied . | . . . . . . Relay Couplers Released . | . . . . . . Fabnet Peak Effective % . | . . . . . . Robots Rewired . | . . . . . . Allies Hacked . | . . . . . . Hacks Repelled . | . . . . . . Allies | -11 -10 -10 -9 -9 -9 -------- Run | Yrd Mat Min Mat Min Exi Total Allies . | . . . . . . Largest Group . | . . . . . . Highest-Rated Group . | . . . . . . Highest-Rated Ally . | . . . . . . Total Orders . | . . . . . . Ally Attacks . | . . . . . . Total Damage . | . . . . . . Kills . | . . . . . . Allies Corrupted . | . . . . . . Allies Melted . | . . . . . . Intel | -11 -10 -10 -9 -9 -9 ------- Run | Yrd Mat Min Mat Min Exi Robot Analysis Total 1 | . 1 . . . . Derelict Logs Recovered 2 | . . 1 . 1 . Drone Launches . | . . . . . . Drone Recoveries . | . . . . . . Exploration | -11 -10 -10 -9 -9 -9 ------------- Run | Yrd Mat Min Mat Min Exi Turns Passed 3338 | 161 340 988 906 465 478 Spaces Moved 1820 | 59 175 641 504 240 201 Core 155 | 21 . 132 . . 2 Treads . | . . . . . . Legs 1656 | 38 175 509 495 240 199 Wheels . | . . . . . . Hover . | . . . . . . Flight 9 | . . . 9 . . Fastest Speed 50 | 50 120 120 120 190 100 Average Speed 145 | 95 133 136 130 190 184 Slowest Speed 330 | 120 190 200 330 190 190 Overloaded Moves . | . . . . . . Propulsion Burnouts . | . . . . . . Robots Hopped . | . . . . . . Cave-ins Triggered . | . . . . . . Exploration Rate (%) 48 | 5 37 98 46 57 50 Regions Visited 5 Branch Regions 3 Pre-discovered Areas 1 | . . . . . 1 Known Exits Taken . | . . . . . . Unknown Exits Taken 5 | 1 1 1 1 1 . Scrap Searched 4 | . . 2 . 2 . Spaces Dug . | . . . . . . Terrain Destroyed 53 | . 3 . 50 . . Melee . | . . . . . . Projectile . | . . . . . . AOE 53 | . 3 . 50 . . Terrain Rammed . | . . . . . . Walls Destroyed . | . . . . . . Machines Disabled . | . . . . . . Actions | -11 -10 -10 -9 -9 -9 --------- Run | Yrd Mat Min Mat Min Exi Total 2263 | 164 226 713 660 245 255 Wait 114 | 93 . 11 10 . . Move 1815 | 58 174 640 503 239 201 Hop . | . . . . . . Pick Up 58 | 8 7 10 28 2 3 Fast Attach 1 | . . . 1 . . Attach 19 | 5 3 . 6 . 5 Detach . | . . . . . . Swap 44 | . 7 14 22 . 1 Drop 48 | . 2 14 26 1 5 Fire 157 | . 33 21 60 3 40 Melee . | . . . . . . Ram . | . . . . . . Kick 7 | . . 3 4 . . Crush . | . . . . . . Escape Stasis . | . . . . . . Rewire . | . . . . . . Trap . | . . . . . . Miscellaneous . | . . . . . . Route ------- -11/Scrapyard -10/Materials -10/Mines (discovered 2 exits: *Mat x2) -9/Materials (discovered 3 exits: [*Mat x2] / *Min) -9/Mines -9/Exiles (discovered 1 exit: [*Min]) History --------- Turn | Location | Event 9 | -11/Scrapyard | Discovered new exit (range 14) 162 | -11/Scrapyard | Entered Materials 306 | -10/Materials | Build established: Mutant 475 | -10/Materials | Discovered new exit (range 14) 502 | -10/Materials | Entered Mines 645 | -10/Mines | Learned Materials garrison access intel 687 | -10/Mines | Found a damaged Exp. Sensor Array with a note attached 690 | -10/Mines | Found Prototype Device 691 | -10/Mines | Identified Exp. Sensor Array 829 | -10/Mines | Build established: Scavenger-Mutant 901 | -10/Mines | Discovered new exit (range 13) 1067 | -10/Mines | Discovered new exit (range 10) 1192 | -10/Mines | Received a Rocket Launcher from a helpful Derelict 1490 | -10/Mines | Entered Materials 1490 | -9/Materials | Evolved 2 slots: Utility x1, Weapon x1 1770 | -9/Materials | Discovered new exit (range 4) 1775 | -9/Materials | Build established: Scavenger-Gunner 1896 | -9/Materials | Repaired Lgt. Nuclear Core 1999 | -9/Materials | Discovered new exit (range 8) 2157 | -9/Materials | Destroyed 8 combat bots 2362 | -9/Materials | Discovered new exit (range 11) 2396 | -9/Materials | Entered Mines 2667 | -9/Mines | Learned Materials terminal intel 2677 | -9/Mines | Build established: Gunner 2682 | -9/Mines | Discovered new exit (range 18) 2853 | -9/Mines | Deemed a non-threat by the Exiles lab entrance 2861 | -9/Mines | Entered Exiles 2919 | -9/Exiles | Met 8R-AWN 2950 | -9/Exiles | Met EX-HEX 3048 | -9/Exiles | Met EX-DEC 3062 | -9/Exiles | Learned location of Zion (-7) 3147 | -9/Exiles | Discovered new exit (range 11) 3202 | -9/Exiles | Attacked by the Exiles 3259 | -9/Exiles | Core integrity fell below 50% 3287 | -9/Exiles | System corruption reached 10% 3309 | -9/Exiles | Destroyed 7 combat bots 3311 | -9/Exiles | Core integrity fell below 20% 3339 | -9/Exiles | Destroyed by 8R-AWN with 8R-AWN's Boregun Last Messages --------------- HV Slug penetrates Wall. Penetrated by HV Slug. System corrupted: Matter fused (-9). Penetrated by HV Slug. Critical hit (Destroy). Imp. Assault Rifle destroyed. HV Slug penetrates Machine. HV Slug penetrates Wall. Penetrated by HV Slug. System corrupted: Imp. Assault Rifle jammed. Penetrated by HV Slug. Critical hit (Destroy). Imp. Assault Rifle destroyed. Penetrated by HV Slug. Critical hit (Destroy). Minigun destroyed. Acquired 17 matter. Penetrated by HV Slug. HV Slug penetrates Machine. Penetrated by HV Slug. Map ----- +----------------------------------------------------+ | ?????????????????????????????????????????????????? | | ?????????????????????????????????????????????????? | | ?????????????????????????????????????????????????? | | ?????????????????????????????????????????????????? | | ?????????####????????????????????????????????????? | | ????????## #???????????????????????????????????? | | ????????# ???????????????????????????????????? | | ????????# < ???????????????????????????????????? | | ????????# ##?????????????????????????????????? | | ????????# ?????????????????????????????????? | | ????????# #?????????????????????????????????? | | ?????????# #?????????????????????????????????? | | ?????????# ##????????????????????????????????? | | ??????????# #????????????#######?????????????? | | ??????????# #######??????#!!! "#?????????????? | | ??????????# #""##?????# "#?????????????? | | ??????????## #?????# "#?????????????? | | ???????????##" ##???## ""#??????????#### | | ???????????#"" ##### ""#??????????# | | ???????????#### ## ""#??????????#"" | | ??????????????## # #????????????#"" | | ???????????????#"## #????????????#"" | | ???????????????####### % ##???????????#"" | | ?????????????????????### % "#???????????# | | ???????????????######## % ###?????????#"" | | ???????????????# !!""" @%g ##????????### | | ???????????????#! %% ;##"" ######???### | | ???????????????#! **####" """#####X# | | ???????????????#! ##??#" | | ???????????????# ! " ;;#???#"# | | ???????????????#######;####???#### % | | ????????????????????# #??????????### | | ???????????????????# #?????????????### | | ??????????????????# #????????????????## | | ?????????????????# #??????????????????## | | ????????????????# #????????????????????##" | | ???????????????? #??????????????????????#"" | | ??????????????? ????????????????????????#" | | ?????????????? ?????????????????????????"" | | ????????????????????????????????????????""" | | ????????????????????????????????????????"" | | ?????????????????????????????????????????" | | ????????????????????????????????????????" | | ????????????????????????????????????????"" | | ????????????????????????????????????????? | | ?????????????????????????????????????????" | | ???????????????????????????????????????????" | | ????????????????????????????????????????????? | | ??????????????????????????????????????????????? | | ?????????????????????????????????????????????????? | +----------------------------------------------------+ Best States ------------- Heat Dissipation 42 Energy Generation 14 Energy Capacity 280 Matter Stores 300 Matter Capacity 500 Sight Range 16 Robot Scan Range 20 Terrain Scan Density 10 Evasion (%) 55 Offensive Hacking 10 Item Schematics ----------------- Particle Cannon | -9/Materials | Scanalyzed Rocket Launcher | -9/Materials | Scanalyzed Robot Schematics ------------------ None Fabricated ------------ Nothing Alien Tech Used ----------------- None Achievements -------------- Everything Is Under Control Gunslinger Librarian System Compromised Tourist Challenges ------------ None Game ------ Seed PlatingThermalAirjet Manual? 0 Play Time 00:32:59 Cumulative 1.5 hours Start 2024.03.31 @ 21:58:31 End 2024.03.31 @ 22:30:26 Sessions 1 Manual Loads 0 Difficulty Rogue Special Mode None Game No. 4 Rogue 4 Adventurer 0 Explorer 0 Win Type - Total 0 Types 0/0/0/0/0/0/0/0/0 Lore% 4 Gallery% 6 Achievement% 7 Wizard Run 0 Options --------- Layout 1 ASCII 0 Keyboard 0 Movement Mouse Keybinds 0 Fullscreen 1 Font 32/Terminus Map View 50x35 Zoom Use 0% Tactical HUD 0 Map Filters NONE Filters NONE Steam 1 RUN: 341ab8e2-c95e-4841-a552-7265dcc17374